[Event "WCCC U10 2019"]
[Site "Weifang"]
[Date "2019.08.31"]
[Round "10.5"]
[White "Meng, Yihan"]
[Black "Sodbileg, Uranjargal"]
[Result "1-0"]
[ECO "C54"]
[WhiteElo "1793"]
[BlackElo "1419"]
[Annotator "NA"]
[PlyCount "147"]
[EventDate "2019.08.21"]
[EventType "swiss"]
[EventCountry "CHN"]
[SourceTitle "playchess.com"]
[Source "ChessBase"]
[SourceQuality "1"]
[TimeControl "40/5400+30:1800+30"]

1. e4 {[%emt 0:00:00]} e5 {[%emt 0:00:00]} 2. Nf3 {[%emt 0:00:00]} Nc6 {[%emt 0:00:05]} 3. Bc4 {[%emt 0:00:12]} Bc5 {[%emt 0:00:18]} 4. c3 {[%emt 0:00:00]} Nf6 {[%emt 0:00:17]} 5. d3 {[%emt 0:00:20]} d6 {[%emt 0:00:21]} 6. O-O {[%emt 0:00:24]} O-O {[%emt 0:00:15]} 7. Re1 {[%emt 0:00:29]} a6 {[%emt 0:01:59]} 8. Bb3 {[%emt 0:00:41]} Ba7 {[%emt 0:00:21]} 9. h3 {[%emt 0:01:33]} h6 {[%emt 0:00:16]} 10. Nbd2 {[%emt 0:01:41]} Ne7 {[%emt 0:00:24]} 11. Nf1 {[%emt 0:01:22]} Ng6 {[%emt 0:00:12]} 12. d4 {[%emt 0:01:29]} c6 {[%emt 0:05:38]} 13. Ng3 {[%emt 0:02:24]} Qc7 {[%emt 0:01:04]} 14. Be3 {[%emt 0:02:44]} Kh7 {[%emt 0:01:10]} 15. Qd2 {[%emt 0:01:08]} Re8 {[%emt 0:01:35]} 16. dxe5 {[%emt 0:01:37]} dxe5 {[%emt 0:05:47]} 17. Bxa7 {[%emt 0:00:28]} Rxa7 {[%emt 0:00:14]} 18. Rad1 {[%emt 0:01:36]} c5 {[%emt 0:07:43]} 19. Qd6 {[%emt 0:02:00]} b5 {[%emt 0:01:29]} 20. Re2 {[%emt 0:14:30]} c4 {[%emt 0:02:06]} 21. Qxc7 {[%emt 0:00:50]} Rxc7 {[%emt 0:00:24]} 22. Bc2 {[%emt 0:00:04]} Nf4 {[%emt 0:10:09]} 23. Red2 {[%emt 0:00:11]} g6 {[%emt 0:03:29]} 24. Rd6 {[%emt 0:01:46]} Kg7 {[%emt 0:00:35]} 25. Kf1 {[%emt 0:01:28]} Ree7 {[%emt 0:09:14]} 26. R6d2 {[%emt 0:07:17]} Bb7 {[%emt 0:00:47]} 27. Ng1 {[%emt 0:01:28]} Nd7 {[%emt 0:04:55]} 28. N3e2 {[%emt 0:00:58]} Ne6 {[%emt 0:01:45]} 29. f3 {[%emt 0:00:56]} Ndc5 {[%emt 0:01:03]} 30. Ng3 {[%emt 0:02:57]} Nf4 {[%emt 0:00:27]} 31. N1e2 {[%emt 0:00:17]} Nfd3 {[%emt 0:00:18]} 32. Bxd3 {[%emt 0:00:10]} Nxd3 {[%emt 0:00:32]} 33. Nc1 {[%emt 0:00:10]} Nc5 {[%emt 0:01:16]} 34. Kf2 {[%emt 0:01:54]} a5 {[%emt 0:03:04]} 35. Ke2 {[%emt 0:03:25]} b4 {[%emt 0:00:29]} 36. Nf1 {[%emt 0:00:16]} Na4 {[%emt 0:10:17]} 37. Rc2 {[%emt 0:00:13]} Ba6 {[%emt 0:00:45]} 38. Kf2 {[%emt 0:03:34]} Rb7 {[%emt 0:08:09]} 39. Rd5 {[%emt 0:01:33]} b3 {[%emt 0:02:14]} 40. axb3 {[%emt 0:03:06]} cxb3 {[%emt 0:00:12]} 41. Rcd2 {[%emt 0:30:05]} Nb6 {[%emt 0:30:15]} 42. Rxa5 {[%emt 0:02:32]} Bxf1 {[%emt 0:00:10]} 43. Kxf1 {[%emt 0:00:05]} Nc4 {[%emt 0:00:05]} 44. Rad5 {[%emt 0:00:05]} Nxd2+ {[%emt 0:00:22]} 45. Rxd2 {[%emt 0:00:06]} Re6 {[%emt 0:00:07]} 46. Ke2 {[%emt 0:00:44]} Ra6 {[%emt 0:00:22]} 47. Nd3 {[%emt 0:00:07]} Ra5 {[%emt 0:01:30]} 48. Rd1 {[%emt 0:01:29]} Ra2 {[%emt 0:03:02]} 49. Rb1 {[%emt 0:07:28]} Kf6 {[%emt 0:02:38]} 50. c4 {[%emt 0:00:46]} Rc7 {[%emt 0:01:37]} 51. c5 {[%emt 0:01:42]} Ke6 {[%emt 0:00:21]} 52. Kd2 {[%emt 0:00:53]} Rd7 {[%emt 0:02:04]} 53. Kc3 {[%emt 0:01:45]} Ra8 {[%emt 0:00:09]} 54. Nb4 {[%emt 0:04:24]} Rc8 {[%emt 0:00:19]} 55. c6 {[%emt 0:00:19]} Rd4 {[%emt 0:00:06]} 56. Ra1 {[%emt 0:00:50]} f5 {[%emt 0:00:27]} 57. exf5+ {[%emt 0:07:53]} gxf5 {[%emt 0:01:01]} 58. Ra7 {[%emt 0:03:56]} Rb8 {[%emt 0:02:16]} 59. Rb7 {[%emt 0:01:07]} Rc8 {[%emt 0:00:16]} 60. Kxb3 {[%emt 0:05:15]} e4 {[%emt 0:00:33]} 61. fxe4 {[%emt 0:00:04]} fxe4 {[%emt 0:00:36]} 62. Kc3 {[%emt 0:00:00]} Rd6 {[%emt 0:00:00]} 63. Rh7 {[%emt 0:00:00]} Kf5 {[%emt 0:00:00]} 64. Rf7+ {[%emt 0:00:00]} Kg5 {[%emt 0:00:00]} 65. g3 {[%emt 0:00:00]} Re6 {[%emt 0:00:00]} 66. Kd2 {[%emt 0:00:00]} e3+ {[%emt 0:00:00]} 67. Ke2 {[%emt 0:00:00]} Re4 {[%emt 0:00:00]} 68. Nd5 {[%emt 0:00:00]} Kg6 {[%emt 0:00:00]} 69. Rd7 {[%emt 0:00:00]} Rce8 {[%emt 0:00:00]} 70. c7 {[%emt 0:00:01]} Kf5 {[%emt 0:00:00]} 71. Rd8 {[%emt 0:00:15]} R8e6 {[%emt 0:00:00]} 72. c8=Q {[%emt 0:00:11]} Ke5 {[%emt 0:00:00]} 73. Nc3 {[%emt 0:01:01]} Rb4 {[%emt 0:00:00]} 74. Qc5+ {[%emt 0:00:08] Kd5} 1-0

[Event "WCCC U10 2019"]
[Site "Weifang"]
[Date "2019.08.31"]
[Round "10.6"]
[White "Chennareddy, Yuvraj"]
[Black "Lu, Miaoyi"]
[Result "1/2-1/2"]
[ECO "B19"]
[WhiteElo "1727"]
[BlackElo "1950"]
[Annotator "NA"]
[PlyCount "112"]
[EventDate "2019.08.21"]
[EventType "swiss"]
[EventCountry "CHN"]
[SourceTitle "playchess.com"]
[Source "ChessBase"]
[SourceQuality "1"]
[TimeControl "40/5400+30:1800+30"]

1. e4 {[%emt 0:00:00]} c6 {[%emt 0:00:00]} 2. d4 {[%emt 0:00:06]} d5 {[%emt 0:00:00]} 3. Nc3 {[%emt 0:00:32]} dxe4 {[%emt 0:00:00]} 4. Nxe4 {[%emt 0:00:24]} Bf5 {[%emt 0:00:00]} 5. Ng3 {[%emt 0:00:15]} Bg6 $1 {[%emt 0:00:00]} 6. h4 {[%emt 0:00:42]} h6 {[%emt 0:00:00]} 7. Nf3 {[%emt 0:00:11]} Nd7 {[%emt 0:00:04]} 8. h5 {[%emt 0:00:37]} Bh7 {[%emt 0:00:03]} 9. Bd3 {[%emt 0:00:16]} Bxd3 {[%emt 0:00:04]} 10. Qxd3 {[%emt 0:00:11]} e6 {[%emt 0:00:04]} 11. Bd2 {[%emt 0:02:59]} ({Predecessor:} 11. c3 Ngf6 {0-1 (39) Yip,C (1781)-Jacobson,A (1936) ICC INT 2014}) 11... Ngf6 {[%emt 0:00:07]} 12. c3 $146 {[%emt 0:00:37] B19: Classical Caro-Kann: 4...Bf5 main line} (12. O-O-O a5 13. Nf1 a4 14. Ne3 Be7 15. g4 Nd5 16. c4 Nxe3 17. Bxe3 Qa5 18. Qc2 O-O-O 19. Kb1 Kb8 20. Bf4+ {½-½ (53) Anand,V (2773)-Karjakin,S (2753) Kolkata 2018}) 12... Be7 {[%emt 0:06:11]} 13. O-O-O {[%emt 0:00:44]} O-O {[%emt 0:00:39]} 14. Ne4 {[%emt 0:01:25]} Nxe4 {[%emt 0:01:50]} 15. Qxe4 {[%emt 0:00:03]} Nf6 {[%emt 0:00:36]} 16. Qe2 {[%emt 0:02:02]} Qd5 {[%emt 0:01:23]} 17. c4 {[%emt 0:11:43]} Qe4 {[%emt 0:00:47]} 18. Be3 {[%emt 0:04:06]} Ng4 {[%emt 0:06:19]} 19. Nd2 {[%emt 0:10:21]} Qf5 {[%emt 0:00:17]} 20. Qf3 {[%emt 0:12:11]} Qxf3 {[%emt 0:05:14]} 21. gxf3 {[%emt 0:00:17]} Nf6 {[%emt 0:08:28]} 22. Nb3 {[%emt 0:05:12]} b5 {[%emt 0:07:55]} 23. Na5 {[%emt 0:10:38]} Rac8 {[%emt 0:02:46]} 24. b3 {[%emt 0:07:45]} bxc4 {[%emt 0:08:37]} 25. bxc4 {[%emt 0:04:16]} c5 {[%emt 0:00:58]} 26. d5 {[%emt 0:11:12]} exd5 {[%emt 0:03:16]} 27. cxd5 {[%emt 0:00:02]} Bd6 {[%emt 0:03:09]} 28. Nb7 {[%emt 0:02:06]} Ne8 $14 {[%emt 0:01:34]} 29. Kd2 {[%emt 0:04:02]} Rc7 {[%emt 0:11:04]} 30. Rb1 {[%emt 0:04:52]} Rd7 {[%emt 0:01:01]} 31. Rhd1 {[%emt 0:04:53]} Nf6 {[%emt 0:05:33]} 32. Ke2 {[%emt 0:00:36]} Rb8 {[%emt 0:04:53]} 33. Nxd6 {[%emt 0:00:39]} Rxb1 {[%emt 0:00:06]} 34. Rxb1 {[%emt 0:00:12]} Rxd6 {[%emt 0:00:02]} 35. Bxc5 {[%emt 0:00:36]} Rxd5 {[%emt 0:00:05]} 36. Bxa7 {[%emt 0:00:13]} Ra5 {[%emt 0:03:18]} 37. Rb8+ {[%emt 0:00:14]} Kh7 {[%emt 0:00:03]} 38. Rb7 {[%emt 0:00:26]} Rxa2+ {[%emt 0:00:36]} 39. Kf1 {[%emt 0:00:46]} Nxh5 {[%emt 0:06:33]} 40. Rxf7 {[%emt 0:00:23]} Nf4 {[%emt 0:04:37]} 41. Bd4 {[%emt 0:30:52]} Ne6 {[%emt 0:30:41]} 42. Be3 {[%emt 0:00:02]} Kg6 {[%emt 0:01:18]} 43. Rb7 {[%emt 0:00:25]} Kf6 {[%emt 0:01:04]} 44. Kg2 {[%emt 0:01:01]} g5 {[%emt 0:01:10]} 45. Rb6 {[%emt 0:00:33]} Ra4 {[%emt 0:03:07]} 46. Kg3 {[%emt 0:00:41]} Rc4 {[%emt 0:00:00]} 47. f4 {[%emt 0:00:00]} gxf4+ {[%emt 0:00:00]} 48. Bxf4 {[%emt 0:00:00]} Rxf4 {[%emt 0:00:00]} 49. Rxe6+ {[%emt 0:00:00]} Kxe6 {[%emt 0:00:00]} 50. Kxf4 {[%emt 0:00:00]} Kf6 {[%emt 0:00:00]} 51. Kg4 {[%emt 0:00:00]} Kg6 {[%emt 0:00:00]} 52. f3 {[%emt 0:00:00]} Kf6 {[%emt 0:00:00]} 53. f4 {[%emt 0:00:00]} Kg6 {[%emt 0:00:00]} 54. f5+ {[%emt 0:00:00]} Kf6 {[%emt 0:00:00]} 55. Kh5 {[%emt 0:00:00]} Kxf5 {[%emt 0:00:00]} 56. Kxh6 {[%emt 0:00:00]} Ke5 {[%emt 0:00:05]} 1/2-1/2

[Event "WCCC U10 2019"]
[Site "Weifang"]
[Date "2019.08.31"]
[Round "10.7"]
[White "Movahed, Sina"]
[Black "Mamedov, Edgar"]
[Result "0-1"]
[ECO "B01"]
[WhiteElo "1885"]
[BlackElo "1714"]
[Annotator "NA"]
[PlyCount "78"]
[EventDate "2019.08.21"]
[EventType "swiss"]
[EventCountry "CHN"]
[SourceTitle "playchess.com"]
[Source "ChessBase"]
[SourceQuality "1"]
[TimeControl "40/5400+30:1800+30"]

1. e4 {[%emt 0:00:00]} d5 {[%emt 0:00:53]} 2. exd5 {[%emt 0:00:07]} Qxd5 {[%emt 0:00:08]} 3. Nf3 {[%emt 0:00:24]} Nf6 {[%emt 0:08:51]} 4. Be2 {[%emt 0:00:24]} Nc6 {[%emt 0:19:37]} 5. Nc3 {[%emt 0:01:13]} Qa5 {[%emt 0:00:52]} 6. O-O {[%emt 0:01:04]} Bg4 {[%emt 0:03:48]} 7. h3 {[%emt 0:00:12]} h5 {[%emt 0:03:10]} 8. a3 {[%emt 0:02:07]} O-O-O {[%emt 0:11:54]} 9. b4 {[%emt 0:01:54]} Qf5 {[%emt 0:00:16]} 10. hxg4 {[%emt 0:05:58]} hxg4 {[%emt 0:00:14]} 11. Nh2 {[%emt 0:00:08]} e6 $19 {[%emt 0:06:43]} ({And not} 11... Qh7 12. Bxg4+ Nxg4 13. Qxg4+ $16) 12. Bxg4 {[%emt 0:12:24]} Qg6 {[%emt 0:01:37]} 13. d3 {[%emt 0:03:55]} Bd6 {[%emt 0:03:51]} 14. f4 {[%emt 0:01:37]} Rxh2 {[%emt 0:00:21]} 15. Bxe6+ {[%emt 0:00:21]} fxe6 {[%emt 0:00:51]} 16. Kxh2 {[%emt 0:00:09]} Ng4+ {[%emt 0:00:06]} 17. Kg1 {[%emt 0:00:54]} Qh5 {[%emt 0:00:58]} 18. Rf2 {[%emt 0:00:34]} Qh2+ {[%emt 0:00:36]} 19. Kf1 {[%emt 0:00:05]} Qh1+ {[%emt 0:00:34]} 20. Ke2 {[%emt 0:00:09]} Nd4+ {[%emt 0:00:03]} 21. Kd2 {[%emt 0:00:21]} Nxf2 {[%emt 0:01:05]} 22. Qxh1 {[%emt 0:00:36]} Nxh1 {[%emt 0:00:26]} 23. Ne4 {[%emt 0:00:18]} Bxf4+ {[%emt 0:00:10]} 24. Kd1 {[%emt 0:00:07]} e5 {[%emt 0:03:24]} 25. Bxf4 {[%emt 0:00:46]} exf4 {[%emt 0:00:16]} 26. c3 {[%emt 0:00:22]} Nf5 {[%emt 0:00:20]} 27. Ke2 {[%emt 0:00:25]} Nhg3+ {[%emt 0:00:09]} 28. Kf3 {[%emt 0:00:07]} Nxe4 {[%emt 0:01:41]} 29. dxe4 {[%emt 0:00:32]} Nh4+ {[%emt 0:00:54]} 30. Kxf4 {[%emt 0:00:18]} Nxg2+ {[%emt 0:00:13]} 31. Kg5 {[%emt 0:00:08]} Ne3 {[%emt 0:01:05]} 32. Re1 {[%emt 0:00:24]} Nc4 {[%emt 0:00:40]} 33. Kg6 {[%emt 0:00:20]} Rd3 {[%emt 0:02:50]} 34. e5 {[%emt 0:00:30]} Kd7 {[%emt 0:00:22]} 35. Re4 {[%emt 0:00:16]} Rxc3 {[%emt 0:00:12]} 36. Kf7 {[%emt 0:00:20]} Rf3+ {[%emt 0:00:10]} 37. Kxg7 {[%emt 0:00:13]} Nxa3 {[%emt 0:00:08]} 38. Rd4+ {[%emt 0:00:20]} Ke7 {[%emt 0:00:08]} 39. Rh4 {[%emt 0:00:18]} Rg3+ {[%emt 0:00:35]} 0-1

[Event "WCCC U10 2019"]
[Site "Weifang"]
[Date "2019.08.31"]
[Round "10.8"]
[White "Xie, Bryan"]
[Black "Wongso, Steve"]
[Result "1/2-1/2"]
[ECO "C56"]
[WhiteElo "1696"]
[BlackElo "1765"]
[Annotator "NA"]
[PlyCount "98"]
[EventDate "2019.08.21"]
[EventType "swiss"]
[EventCountry "CHN"]
[SourceTitle "playchess.com"]
[Source "ChessBase"]
[SourceQuality "1"]
[TimeControl "40/5400+30:1800+30"]

1. e4 {[%emt 0:00:00]} e5 {[%emt 0:00:00]} 2. Nf3 {[%emt 0:00:00]} Nc6 {[%emt 0:00:00]} 3. d4 {[%emt 0:00:00]} exd4 {[%emt 0:00:00]} 4. Bc4 {[%emt 0:00:00]} Nf6 {[%emt 0:00:00]} 5. e5 {[%emt 0:00:00]} Ng4 {[%emt 0:00:00]} 6. O-O {[%emt 0:00:04]} d6 {[%emt 0:00:00]} 7. exd6 {[%emt 0:00:07]} Bxd6 {[%emt 0:00:00]} 8. Re1+ {[%emt 0:00:05]} Kf8 {[%emt 0:00:00]} 9. Nbd2 {[%emt 0:08:43]} Nge5 {[%emt 0:13:41]} 10. Nxe5 {[%emt 0:02:19]} Nxe5 {[%emt 0:01:28]} 11. Bb3 {[%emt 0:00:18]} Qh4 {[%emt 0:14:02]} 12. h3 {[%emt 0:00:42]} Bf5 {[%emt 0:08:36]} 13. Nf3 {[%emt 0:01:58]} Qh5 {[%emt 0:13:10]} 14. Nxd4 {[%emt 0:05:59]} Qxd1 {[%emt 0:00:11]} 15. Rxd1 {[%emt 0:00:00]} Bd7 {[%emt 0:00:06]} 16. Be3 {[%emt 0:05:31]} Ke7 {[%emt 0:02:01]} 17. c3 {[%emt 0:02:07]} Rhe8 {[%emt 0:00:35]} 18. Bc2 {[%emt 0:02:23]} g6 {[%emt 0:04:20]} 19. b3 {[%emt 0:03:12]} f5 {[%emt 0:03:49]} 20. f4 {[%emt 0:03:03]} Nf7 {[%emt 0:04:40]} 21. Kf2 {[%emt 0:01:13]} Kf8 {[%emt 0:00:30]} 22. Re1 {[%emt 0:01:46]} Re7 {[%emt 0:01:07]} 23. g3 {[%emt 0:01:31]} Rae8 {[%emt 0:00:25]} 24. Bd2 {[%emt 0:01:08]} c5 {[%emt 0:00:19]} 25. Rxe7 {[%emt 0:02:44]} Bxe7 {[%emt 0:00:29]} 26. Nf3 {[%emt 0:00:43]} Bf6 {[%emt 0:00:09]} 27. Re1 {[%emt 0:00:15]} Bc6 {[%emt 0:01:17]} 28. Rxe8+ {[%emt 0:04:31]} Kxe8 {[%emt 0:00:09]} 29. Ke3 {[%emt 0:02:16]} Ke7 {[%emt 0:01:16]} 30. g4 {[%emt 0:01:21]} Ke6 {[%emt 0:00:36]} 31. b4 {[%emt 0:02:04]} Bxf3 {[%emt 0:01:51]} 32. Kxf3 {[%emt 0:00:29]} c4 {[%emt 0:00:06]} 33. a4 {[%emt 0:01:24]} a6 {[%emt 0:00:55]} 34. Be1 {[%emt 0:01:55]} Nd6 {[%emt 0:00:37]} 35. Ke3 {[%emt 0:00:34]} Kd5 {[%emt 0:00:24]} 36. Bd1 {[%emt 0:00:19]} b5 {[%emt 0:01:22]} 37. Bf3+ {[%emt 0:00:04]} Ne4 {[%emt 0:00:17]} 38. a5 {[%emt 0:01:44]} Bg7 {[%emt 0:02:01]} 39. Bg2 {[%emt 0:01:14]} Bf6 {[%emt 0:00:04]} 40. h4 {[%emt 0:01:27]} h5 {[%emt 0:01:16]} 41. gxf5 {[%emt 0:30:20]} gxf5 {[%emt 0:30:06]} 42. Bf3 {[%emt 0:00:06]} Bg7 {[%emt 0:00:06]} 43. Bh1 {[%emt 0:18:33]} Bf6 {[%emt 0:01:42]} 44. Bg2 {[%emt 0:00:22]} Bg7 {[%emt 0:00:05]} 45. Bf3 {[%emt 0:00:05]} Bf6 {[%emt 0:00:07]} 46. Bg2 {[%emt 0:01:18]} Bg7 {[%emt 0:00:08]} 47. Bf3 {[%emt 0:01:37]} Bf6 {[%emt 0:00:06]} 48. Bh1 {[%emt 0:01:07]} Ke6 {[%emt 0:00:03]} 49. Bf3 {[%emt 0:00:03]} Kd5 {[%emt 0:00:02] Kxe4+ Ke5+} 1/2-1/2

[Event "WCCC U10 2019"]
[Site "Weifang"]
[Date "2019.08.31"]
[Round "10.9"]
[White "Tenuunbold, Battulga"]
[Black "Hvozdz, Aliaksandr"]
[Result "1-0"]
[ECO "A59"]
[WhiteElo "1754"]
[BlackElo "1699"]
[Annotator "NA"]
[PlyCount "117"]
[EventDate "2019.08.21"]
[EventType "swiss"]
[EventCountry "CHN"]
[SourceTitle "playchess.com"]
[Source "ChessBase"]
[SourceQuality "1"]
[TimeControl "40/5400+30:1800+30"]

1. d4 {[%emt 0:00:04]} Nf6 {[%emt 0:00:13]} 2. c4 {[%emt 0:00:33]} c5 {[%emt 0:00:15]} 3. d5 {[%emt 0:00:21]} b5 {[%emt 0:00:12]} 4. cxb5 {[%emt 0:00:25]} a6 {[%emt 0:02:43]} 5. bxa6 {[%emt 0:00:29]} g6 {[%emt 0:00:18]} 6. Nc3 {[%emt 0:01:13]} Bxa6 {[%emt 0:00:16]} 7. e4 {[%emt 0:00:23]} Bxf1 {[%emt 0:00:18]} 8. Kxf1 {[%emt 0:00:09]} d6 {[%emt 0:00:32]} 9. g3 {[%emt 0:01:01]} Bg7 {[%emt 0:00:34]} 10. Kg2 {[%emt 0:01:20]} O-O {[%emt 0:00:28]} 11. Nf3 {[%emt 0:00:05]} Nbd7 {[%emt 0:00:41]} 12. a4 {[%emt 0:00:21]} Ne8 {[%emt 0:00:28]} 13. Qc2 {[%emt 0:06:59]} Qb6 {[%emt 0:02:47]} 14. Bd2 {[%emt 0:08:42]} Nc7 {[%emt 0:03:31]} 15. Rab1 {[%emt 0:14:52]} c4 {[%emt 0:09:25]} 16. Be3 {[%emt 0:05:55]} Qb4 {[%emt 0:04:52]} 17. Rhc1 {[%emt 0:06:18]} Rfc8 {[%emt 0:07:54]} 18. Bd2 {[%emt 0:06:33]} Bxc3 {[%emt 0:14:54]} 19. Bxc3 {[%emt 0:04:52]} Qxa4 {[%emt 0:02:48]} 20. Qd2 {[%emt 0:00:07]} Nb5 {[%emt 0:02:27]} 21. Qg5 {[%emt 0:08:01]} Nxc3 {[%emt 0:05:43]} 22. bxc3 {[%emt 0:03:59]} f6 {[%emt 0:03:30]} 23. Qg4 {[%emt 0:00:30]} Nc5 {[%emt 0:03:58]} 24. Nd4 {[%emt 0:01:50]} Qa2 {[%emt 0:12:02]} 25. Nc6 {[%emt 0:17:43]} Rc7 {[%emt 0:01:12]} 26. Nb4 {[%emt 0:01:34]} Qa4 {[%emt 0:05:55]} 27. Rc2 {[%emt 0:05:27]} Qd7 {[%emt 0:01:44]} 28. Qe2 {[%emt 0:00:21]} Nb3 {[%emt 0:07:26]} 29. Nc6 {[%emt 0:00:43]} Rxc6 {[%emt 0:01:57]} 30. dxc6 {[%emt 0:00:08]} Qxc6 {[%emt 0:00:10]} 31. Rd1 {[%emt 0:00:51]} Ra5 {[%emt 0:02:04]} 32. Qf3 {[%emt 0:00:49]} Re5 {[%emt 0:00:41]} 33. Rd5 {[%emt 0:00:47]} Nc5 {[%emt 0:01:08]} 34. Rxe5 {[%emt 0:00:10]} fxe5 {[%emt 0:00:45]} 35. Re2 {[%emt 0:00:03]} Nd3 {[%emt 0:01:10]} 36. Qg4 {[%emt 0:00:11]} Kf7 {[%emt 0:00:43]} 37. Qh4 {[%emt 0:00:47]} h5 {[%emt 0:00:31]} 38. Re3 {[%emt 0:00:34]} Qd7 {[%emt 0:00:38]} 39. h3 {[%emt 0:01:41]} Qe6 {[%emt 0:01:16]} 40. Re2 {[%emt 0:01:27]} Nc5 {[%emt 0:01:07]} 41. Qg5 {[%emt 0:30:24]} Qf6 {[%emt 0:30:37]} 42. Qe3 {[%emt 0:00:15]} h4 {[%emt 0:00:00]} 43. Ra2 {[%emt 0:00:00]} Qe6 {[%emt 0:00:00]} 44. Ra8 {[%emt 0:00:00]} Kg7 {[%emt 0:00:00]} 45. Qf3 {[%emt 0:00:00]} Qf6 {[%emt 0:00:00]} 46. gxh4 {[%emt 0:00:00]} Kf7 {[%emt 0:00:00]} 47. Qxf6+ {[%emt 0:00:00]} Kxf6 {[%emt 0:00:00]} 48. Kf3 {[%emt 0:00:00]} e6 {[%emt 0:00:00]} 49. Rc8 {[%emt 0:00:00]} Nb3 {[%emt 0:00:00]} 50. Rc6 {[%emt 0:00:00]} Ke7 {[%emt 0:00:00]} 51. Ke2 {[%emt 0:00:00]} Nc5 {[%emt 0:00:00]} 52. Rxc5 {[%emt 0:00:00]} dxc5 {[%emt 0:00:00]} 53. Kf3 {[%emt 0:00:00]} Kf7 {[%emt 0:00:00]} 54. Kg4 {[%emt 0:00:00]} Kf6 {[%emt 0:00:00]} 55. f3 {[%emt 0:00:00]} Kg7 {[%emt 0:00:00]} 56. Kg5 {[%emt 0:00:00]} Kf7 {[%emt 0:00:00]} 57. h5 {[%emt 0:00:00]} gxh5 {[%emt 0:00:00]} 58. Kxh5 {[%emt 0:00:00]} Kg7 {[%emt 0:00:00]} 59. Kg5 {[%emt 0:00:00]} 1-0

[Event "WCCC U10 2019"]
[Site "Weifang"]
[Date "2019.08.31"]
[Round "10.10"]
[White "Huang, Yuhang"]
[Black "Mayank Chakraborty"]
[Result "0-1"]
[ECO "B66"]
[WhiteElo "1364"]
[BlackElo "1731"]
[Annotator "NA"]
[PlyCount "138"]
[EventDate "2019.08.21"]
[EventType "swiss"]
[EventCountry "CHN"]
[SourceTitle "playchess.com"]
[Source "ChessBase"]
[SourceQuality "1"]
[TimeControl "40/5400+30:1800+30"]

1. e4 {[%emt 0:00:00]} c5 {[%emt 0:00:00]} 2. Nf3 {[%emt 0:00:03]} d6 {[%emt 0:00:00]} 3. d4 {[%emt 0:00:10]} cxd4 {[%emt 0:00:00]} 4. Nxd4 {[%emt 0:00:04]} Nf6 {[%emt 0:00:10]} 5. Nc3 {[%emt 0:00:23]} Nc6 {[%emt 0:00:07]} 6. Bg5 {[%emt 0:01:13]} e6 {[%emt 0:00:08]} 7. Qd2 {[%emt 0:00:06]} a6 {[%emt 0:00:04]} 8. O-O-O {[%emt 0:00:12]} Bd7 {[%emt 0:00:06]} 9. f3 {[%emt 0:00:06]} b5 {[%emt 0:00:56]} 10. Kb1 {[%emt 0:00:26]} h6 {[%emt 0:00:23]} 11. Be3 {[%emt 0:00:55]} Qc7 {[%emt 0:00:15]} 12. g4 {[%emt 0:00:47]} b4 {[%emt 0:01:38]} 13. Nce2 {[%emt 0:00:35]} d5 {[%emt 0:00:40]} 14. Nxc6 {[%emt 0:07:51]} Bxc6 {[%emt 0:00:13]} 15. e5 {[%emt 0:00:32]} Nd7 {[%emt 0:00:48]} 16. Nd4 {[%emt 0:06:02]} Nxe5 {[%emt 0:06:26]} 17. Nxc6 {[%emt 0:06:16]} Qxc6 {[%emt 0:00:51]} 18. Qg2 {[%emt 0:00:39]} Nc4 {[%emt 0:01:19]} 19. Bxc4 {[%emt 0:02:42]} Qxc4 {[%emt 0:00:29]} 20. Bd4 {[%emt 0:00:37]} O-O-O {[%emt 0:03:12]} 21. b3 {[%emt 0:03:46]} Qc6 {[%emt 0:01:40]} 22. Rc1 {[%emt 0:01:27]} Kb7 {[%emt 0:11:45]} 23. c3 {[%emt 0:00:19]} Qb5 {[%emt 0:01:11]} 24. Rc2 {[%emt 0:04:00]} Rc8 {[%emt 0:01:43]} 25. Rhc1 {[%emt 0:01:47]} bxc3 {[%emt 0:00:06]} 26. Bxc3 {[%emt 0:02:39]} Qd3 {[%emt 0:02:53]} 27. Kb2 {[%emt 0:03:00]} d4 {[%emt 0:01:17]} 28. f4+ {[%emt 0:01:14]} Kb8 {[%emt 0:07:32]} 29. Ba5 {[%emt 0:01:07]} Rxc2+ {[%emt 0:00:55]} 30. Rxc2 {[%emt 0:00:11]} Qb5 {[%emt 0:00:43]} 31. Bc7+ {[%emt 0:05:12]} Ka7 {[%emt 0:01:04]} 32. Be5 {[%emt 0:01:59]} Bc5 {[%emt 0:00:06]} 33. Qe4 {[%emt 0:01:44]} Rd8 {[%emt 0:02:23]} 34. Bxg7 {[%emt 0:01:41]} d3 {[%emt 0:01:12]} 35. Rd2 {[%emt 0:00:58]} Ba3+ {[%emt 0:01:33]} 36. Kb1 {[%emt 0:03:38]} Qc5 {[%emt 0:00:25]} 37. Qh1 {[%emt 0:00:53]} Bb4 {[%emt 0:18:23]} 38. Rd1 {[%emt 0:01:34]} Qc2+ {[%emt 0:01:05]} 39. Ka1 {[%emt 0:00:06]} d2 {[%emt 0:01:01]} 40. Qg1+ {[%emt 0:03:40]} Bc5 {[%emt 0:01:12]} 41. Qf1 {[%emt 0:30:26]} Rg8 {[%emt 0:30:15]} 42. Be5 {[%emt 0:03:13]} Rxg4 {[%emt 0:00:22]} 43. Qh1 {[%emt 0:00:37]} Qxd1+ {[%emt 0:00:44]} 44. Qxd1 {[%emt 0:00:44]} Rg1 {[%emt 0:00:01]} 45. Kb2 {[%emt 0:01:02]} Rxd1 {[%emt 0:00:01]} 46. Kc2 {[%emt 0:00:07]} Rh1 {[%emt 0:00:09]} 47. Kxd2 {[%emt 0:00:08]} Rxh2+ {[%emt 0:00:06]} 48. Kd3 {[%emt 0:00:09]} Rxa2 {[%emt 0:00:08]} 49. Kc4 {[%emt 0:00:06]} Rc2+ {[%emt 0:00:06]} 50. Kd3 {[%emt 0:00:09]} Rg2 {[%emt 0:00:15]} 51. Kc4 {[%emt 0:00:18]} Be7 {[%emt 0:00:05]} 52. b4 {[%emt 0:00:09]} f6 {[%emt 0:00:11]} 53. Bd4+ {[%emt 0:00:09]} Kb8 {[%emt 0:00:04]} 54. b5 {[%emt 0:00:08]} a5 {[%emt 0:00:05]} 55. b6 {[%emt 0:00:08]} a4 {[%emt 0:00:03]} 56. Kb5 {[%emt 0:01:04]} a3 {[%emt 0:00:02]} 57. b7 {[%emt 0:00:13]} Rb2+ {[%emt 0:00:07]} 58. Kc6 {[%emt 0:01:03]} Rxb7 {[%emt 0:00:02]} 59. f5 {[%emt 0:00:09]} e5 {[%emt 0:00:02]} 60. Ba1 {[%emt 0:00:38]} Rc7+ {[%emt 0:00:06]} 61. Kb6 {[%emt 0:01:20]} Rc1 {[%emt 0:01:47]} 62. Bxe5+ {[%emt 0:00:37]} fxe5 {[%emt 0:00:02]} 63. f6 {[%emt 0:00:12]} a2 {[%emt 0:00:27]} 64. fxe7 {[%emt 0:00:11]} a1=Q {[%emt 0:00:51]} 65. e8=Q+ {[%emt 0:00:15]} Rc8 {[%emt 0:00:02]} 66. Qf7 {[%emt 0:02:26]} Qd4+ {[%emt 0:00:43]} 67. Kb5 {[%emt 0:00:24]} Rc5+ {[%emt 0:00:05]} 68. Ka6 {[%emt 0:00:11]} Qa4+ {[%emt 0:00:04]} 69. Kb6 {[%emt 0:00:17]} Qa5# {[%emt 0:00:05]} 0-1